bitfinex/quotes_SOLUSD_20220212
["timestamp","ask_amount","ask_price","bid_price","bid_amount"]
[1644667639596,15.6599,95.87,95.812,0.25]
[1644667640999,5.216,95.903,95.813,2.38366791]
[1644667641199,52.189,95.92,95.82,15.03]
[1644667641404,5.216,95.919,95.821,5.216]
[1644667641600,5.216,95.919,95.821,7.84966791]
[1644667641807,5.216,95.919,95.822,2.38366791]
[1644667641999,38.3990928,95.896,95.823,5.215]
[1644667642197,38.3990928,95.896,95.823,5.465]
[1644667642401,38.3990928,95.896,95.824,2.38366791]
[1644667642698,38.3990928,95.896,95.825,0.25]
[1644667643099,38.3990928,95.896,95.825,2.63366791]
[1644667643305,38.3990928,95.896,95.826,45.28873977]
[1644667643700,15.6545,95.91,95.827,0.25]
[1644667643900,15.6509,95.93,95.827,2.63366791]
[1644667644099,5.214,95.939,95.83,15.03]
[1644667644299,47.4566,95.946,95.831,0.25]
[1644667644499,47.4566,95.946,95.831,2.63366791]
[1644667644700,46.10016404,95.945,95.835,1.41153336]
[1644667645001,46.10016404,95.945,95.86,15.6471]
[1644667645201,5.213,95.944,95.861,41.36981199]
[1644667645401,5.463,95.944,95.861,41.36981199]
[1644667646200,5.463,95.944,95.861,56.71961199]
[1644667646804,15.6486,95.94,95.862,2.38366791]
[1644667647003,1.46452715,95.958,95.862,2.38366791]
[1644667647004,5.213,95.957,95.87,15.6453]
[1644667647204,22.676,95.969,95.871,24.3225]
[1644667647404,22.676,95.969,95.88,15.03]
[1644667647603,23.7291,95.978,95.88,15.03]
[1644667647804,23.7291,95.978,95.881,0.25]
[1644667648106,23.7291,95.978,95.881,45.45764912]
[1644667648306,23.7291,95.978,95.882,2.38366791]
[1644667648507,23.7291,95.978,95.883,5.212]
[1644667648704,23.7291,95.978,95.883,5.462]
[1644667648906,23.7291,95.978,95.89,15.641]
[1644667649108,23.7291,95.978,95.901,43.04110267]
[1644667649306,23.7291,95.978,95.902,0.25]
[1644667649707,23.7291,95.978,95.902,2.63366791]
[1644667649908,23.7291,95.978,95.903,7.59466791]
[1644667650111,15.6401,96.0,95.903,7.59466791]
[1644667650336,5.21,95.999,95.904,2.63366791]
[1644667650510,5.21,95.999,95.91,15.6389]
[1644667650711,47.53953154,96.012,95.92,15.03]
[1644667650712,1.8973618,96.012,95.92,15.03]
[1644667651109,1.8973618,96.012,95.921,5.46]
[1644667651313,1.8973618,96.012,95.921,30.61916791]
[1644667651513,1.8973618,96.012,95.922,2.38366791]
[1644667651810,1.8973618,96.012,95.924,36.55967988]
[1644667652011,1.8973618,96.012,95.925,5.21]
[1644667652210,1.8973618,96.012,95.925,7.84366791]
[1644667652413,1.8973618,96.012,95.926,2.38366791]
[1644667652613,1.8973618,96.012,95.94,15.03]
[1644667652813,1.8973618,96.012,95.95,15.54169]
[1644667653012,1.8973618,96.012,95.95,30.57169]
[1644667653213,1.8973618,96.012,95.951,2.63366791]
[1644667653416,1.8973618,96.012,95.952,42.16356665]
[1644667653614,1.8973618,96.012,95.952,44.54723456]
[1644667653813,1.8973618,96.012,95.953,2.63366791]
[1644667654018,1.8973618,96.012,95.96,15.63]
[1644667654215,1.8973618,96.012,95.961,0.25]
[1644667654816,1.8973618,96.012,95.962,7.59166791]
[1644667655016,1.8973618,96.012,95.962,16.95166791]
[1644667655220,1.8973618,96.012,95.963,0.25]
[1644667655423,1.8973618,96.012,95.964,5.208]
[1644667655628,5.208,96.062,95.97,15.629]
[1644667655825,5.208,96.062,95.971,40.25922154]
[1644667656226,5.17097,96.062,95.972,2.38366791]
[1644667656431,5.17097,96.062,95.973,5.207]
[1644667656633,5.17097,96.062,95.973,5.457]
[1644667656829,5.17097,96.062,95.974,2.38366791]
[1644667657028,5.17097,96.062,95.975,5.207]
[1644667657331,5.17097,96.062,95.976,2.38366791]
[1644667657841,5.17097,96.062,95.98,15.627]
[1644667658245,5.17097,96.062,95.981,0.25]
[1644667659645,15.629,96.06,95.981,0.25]
[1644667659945,5.207,96.059,95.976,0.25]
[1644667660545,5.207,96.059,95.972,0.25]
[1644667660845,15.6305,96.05,95.972,0.25]
[1644667661149,45.12342767,96.049,95.972,0.25]
[1644667661345,50.33042767,96.049,95.972,0.25]
[1644667662845,15.6325,96.04,95.972,0.25]
[1644667663246,0.25,96.039,95.972,0.25]
[1644667663446,5.208,96.038,95.954,5.207]
[1644667663646,2.38366791,96.039,95.931,5.208]
[1644667663851,15.6341,96.03,95.921,5.208]
[1644667664050,15.03,96.02,95.882,5.208]
[1644667664449,38.69790052,96.019,95.883,43.6265845]
[1644667664651,43.90790052,96.019,95.884,5.21]
[1644667664847,2.38366791,96.018,95.884,5.21]
[1644667665148,5.21,96.017,95.885,2.38366791]
[1644667665346,5.21,96.017,95.886,5.21]
[1644667665548,15.6426,95.99,95.89,15.6412]
[1644667665747,40.24695344,95.988,95.891,5.211]
[1644667666350,49.77062135,95.988,95.891,5.211]
[1644667666549,5.211,95.987,95.884,15.7332]
[1644667666749,15.6417,95.98,95.885,5.211]
[1644667666950,5.211,95.979,95.885,5.211]
[1644667667150,42.63062135,95.988,95.885,5.211]
[1644667667550,40.24695344,95.988,95.886,0.25]
[1644667667749,15.645,95.96,95.886,0.25]
[1644667667949,48.34589801,95.959,95.885,0.25]
[1644667668551,48.34589801,95.959,95.885,2.63366791]
[1644667670052,0.25,95.958,95.885,2.63366791]
[1644667671155,48.34589801,95.959,95.885,2.63366791]
[1644667671865,15.643,95.98,95.89,15.6422]
[1644667672257,15.643,95.98,95.891,7.84466791]
[1644667672558,15.643,95.98,95.892,2.38366791]
[1644667672759,42.46992737,95.979,95.893,0.25]
[1644667673860,42.46992737,95.979,95.894,2.38366791]
[1644667674067,42.46992737,95.979,95.901,38.31770401]
[1644667674259,42.46992737,95.979,95.902,0.25]
[1644667674759,0.25,95.978,95.902,0.25]
[1644667679361,0.25,95.978,95.902,5.461]
[1644667680363,15.643,95.98,95.903,7.59466791]
[1644667680562,47.6661,95.989,95.91,15.03]
[1644667680764,47.6661,95.989,95.911,5.461]
[1644667680966,47.6661,95.989,95.911,7.84466791]
[1644667681365,86.56832625,95.989,95.912,2.38366791]
[1644667681569,86.56832625,95.989,95.913,5.211]
[1644667681770,5.211,96.007,95.913,5.211]
[1644667681771,5.211,96.007,95.913,5.461]
[1644667681967,46.2956,96.014,95.914,2.38366791]
[1644667682168,46.2956,96.014,95.915,5.21]
[1644667682365,46.2956,96.014,95.92,15.03]
[1644667682765,45.90856493,96.013,95.921,47.33138599]
[1644667682970,15.6368,96.01,95.921,47.33138599]
[1644667683166,5.21,96.009,95.921,47.33138599]
[1644667683567,5.21,96.009,95.922,2.38366791]
[1644667683769,5.21,96.009,95.923,0.25]
[1644667683966,15.6389,96.0,95.921,47.33138599]
[1644667684470,45.34886499,95.998,95.921,47.33138599]
[1644667684667,5.21,95.997,95.921,47.33138599]
[1644667684869,5.46,95.997,95.921,47.33138599]
[1644667685468,15.6414,95.99,95.921,47.33138599]
[1644667687671,15.6414,95.99,95.911,15.887]
[1644667687871,5.211,95.989,95.911,15.887]
[1644667688171,15.6439,95.97,95.89,2.38366791]
[1644667688575,39.76323182,95.969,95.891,37.56404594]
[1644667688771,55.94523182,95.969,95.891,37.56404594]
[1644667689178,15.6472,95.95,95.85,15.6481]
[1644667689377,5.213,95.949,95.83,24.4667]
[1644667689676,15.03,95.94,95.821,24.9319]
[1644667690072,7.59766791,95.939,95.821,24.9319]
[1644667690272,38.22172754,95.938,95.822,35.94263722]
[1644667690474,52.8826,95.937,95.822,36.19263722]
[1644667690771,41.96306078,95.919,95.822,36.19263722]
[1644667690974,24.6147,95.918,95.822,36.19263722]
[1644667691973,24.6147,95.918,95.822,35.94263722]
[1644667692176,24.6147,95.918,95.822,58.81223722]
[1644667692878,15.6541,95.91,95.822,58.81223722]
[1644667693075,5.215,95.909,95.822,58.81223722]
[1644667693280,2.38366791,95.909,95.812,1.41153336]
[1644667693476,5.215,95.908,95.792,1.41153336]
[1644667693677,7.59866791,95.908,95.782,1.41153336]
[1644667693877,15.6548,95.9,95.782,1.41153336]
[1644667694079,5.216,95.899,95.77,18.82520127]
[1644667694279,51.6054,95.906,95.771,46.61672193]
[1644667694681,53.98906791,95.906,95.772,2.38366791]
[1644667694878,2.38366791,95.905,95.772,2.38366791]
[1644667695081,41.2882432,95.903,95.772,2.38366791]
[1644667695281,5.216,95.902,95.772,2.38366791]
[1644667695480,43.25295511,95.886,95.78,15.6603]
[1644667695682,43.25295511,95.886,95.78,30.6903]
[1644667695881,5.216,95.885,95.781,2.63366791]
[1644667696079,27.7256,95.885,95.781,2.63366791]
[1644667696280,27.7256,95.885,95.782,2.38366791]
[1644667696684,0.25,95.884,95.783,0.25]
[1644667696889,5.216,95.883,95.783,0.25]
[1644667697086,5.216,95.883,95.79,15.6573]
[1644667697087,15.6576,95.88,95.79,15.6573]
[1644667697289,15.6576,95.88,95.791,46.30089773]
[1644667697486,15.6576,95.88,95.791,48.68456564]
[1644667697686,15.6576,95.88,95.792,2.38366791]
[1644667698089,15.6576,95.88,95.793,0.25]
[1644667698391,15.6576,95.88,95.794,2.38366791]
[1644667698791,15.6576,95.88,95.8,15.6564]
[1644667699201,15.6576,95.88,95.801,0.25]
[1644667700405,5.216,95.879,95.801,0.25]
[1644667700805,5.216,95.879,95.802,2.38366791]
[1644667701003,15.6576,95.88,95.803,5.216]
[1644667701204,22.5096,95.885,95.803,5.466]
[1644667701404,22.5096,95.885,95.804,2.38366791]
[1644667701606,15.6555,95.9,95.81,15.6552]
[1644667701812,5.216,95.905,95.811,40.61195039]
[1644667702012,23.0032,95.908,95.811,40.61195039]
[1644667702013,23.0032,95.908,95.82,15.03]
[1644667702410,23.0032,95.908,95.821,5.465]
[1644667702607,23.0032,95.908,95.821,7.84866791]
[1644667702806,23.0032,95.908,95.822,2.38366791]
[1644667703207,23.0032,95.908,95.823,0.25]
[1644667703610,23.0032,95.908,95.824,2.38366791]
[1644667703807,23.0032,95.908,95.831,47.39486669]
[1644667704010,23.0032,95.908,95.84,15.03]
[1644667704208,23.0032,95.908,95.841,0.25]
[1644667705208,15.6519,95.92,95.842,5.215]
[1644667705408,5.214,95.919,95.841,0.25]
[1644667706209,35.81853576,95.918,95.841,0.25]
[1644667708010,35.81853576,95.918,95.84,30.6804]
[1644667708612,0.25,95.917,95.84,30.6804]
[1644667708812,5.214,95.916,95.84,30.6804]
[1644667709013,15.6526,95.91,95.84,15.03]
[1644667709215,15.6526,95.91,95.841,0.25]
[1644667709413,5.215,95.909,95.841,0.25]
[1644667710216,15.6547,95.9,95.841,0.25]
[1644667710419,41.99023054,95.899,95.831,47.39486669]
[1644667710712,47.20523054,95.899,95.832,0.25]
[1644667711315,15.656,95.89,95.832,0.25]
[1644667711518,5.215,95.889,95.832,0.25]
[1644667711715,24.5584,95.917,95.832,0.25]
[1644667711916,24.5584,95.917,95.833,5.215]
[1644667712417,0.25,95.916,95.834,0.25]
[1644667712622,15.6538,95.91,95.834,0.25]
[1644667712821,5.215,95.909,95.834,0.25]
[1644667713020,5.215,95.915,95.834,0.25]
[1644667713219,5.215,95.915,95.832,0.25]
[1644667713623,15.6549,95.9,95.832,0.25]
[1644667713821,0.25,95.916,95.832,0.25]
[1644667714922,44.81795945,95.916,95.832,0.25]
[1644667716223,5.215,95.915,95.832,5.465]
[1644667716830,15.653,95.91,95.832,5.465]
[1644667717027,5.215,95.909,95.832,0.25]
[1644667718029,0.25,95.908,95.832,0.25]
[1644667718226,0.25,95.908,95.831,47.39486669]
[1644667718626,15.653,95.91,95.831,47.39486669]
[1644667718827,0.25,95.909,95.831,47.39486669]
[1644667719027,0.25,95.909,95.832,5.215]
[1644667719627,0.25,95.909,95.833,0.25]
[1644667719929,5.465,95.909,95.833,0.25]
[1644667720128,5.465,95.909,95.832,0.25]
[1644667721731,5.215,95.909,95.832,0.25]
[1644667722531,15.653,95.91,95.833,5.215]
[1644667722731,15.653,95.91,95.834,0.25]
[1644667722936,15.653,95.91,95.835,5.215]
[1644667723335,15.653,95.91,95.836,0.25]
[1644667723538,5.215,95.909,95.836,0.25]
[1644667724636,15.653,95.91,95.836,0.25]
[1644667725235,0.25,95.909,95.836,0.25]
[1644667725636,0.25,95.909,95.832,0.25]
[1644667728339,5.215,95.908,95.832,0.25]
[1644667728738,5.215,95.909,95.832,0.25]
[1644667728939,15.653,95.91,95.832,0.25]
[1644667729943,0.25,95.909,95.832,0.25]
[1644667731144,5.215,95.908,95.832,0.25]
[1644667733866,5.215,95.909,95.832,0.25]
[1644667734063,0.25,95.907,95.832,0.25]
[1644667734265,5.215,95.906,95.832,0.25]
[1644667735268,0.25,95.907,95.835,1.41153336]
[1644667735667,15.653,95.91,95.836,1.66153336]
[1644667735869,0.25,95.909,95.836,1.66153336]
[1644667736067,15.653,95.91,95.836,1.66153336]
[1644667736266,24.5584,95.917,95.836,1.66153336]
[1644667736470,24.5584,95.917,95.84,15.6505]
[1644667736670,24.5584,95.917,95.84,17.06203336]
[1644667736868,24.5584,95.917,95.843,1.41153336]
[1644667737069,24.5584,95.917,95.846,1.41153336]
[1644667737269,24.5584,95.917,95.847,0.25]
[1644667737870,15.6508,95.93,95.85,15.6487]
[1644667738071,15.6508,95.93,95.851,5.214]
[1644667738273,15.6508,95.93,95.851,7.84766791]
[1644667738873,15.6508,95.93,95.851,5.464]
[1644667739271,15.6508,95.93,95.852,1.41153336]
[1644667739671,15.6508,95.93,95.853,0.25]
[1644667740575,15.6508,95.93,95.854,5.214]
[1644667740777,15.6508,95.93,95.855,0.25]
[1644667740982,15.6508,95.93,95.851,0.25]
[1644667741975,0.25,95.929,95.851,0.25]
[1644667742176,0.25,95.929,95.852,5.214]
[1644667742580,0.25,95.929,95.853,0.25]
[1644667742781,0.25,95.929,95.854,5.214]
[1644667743180,15.6508,95.93,95.855,0.25]
[1644667743384,0.25,95.929,95.855,0.25]
[1644667744384,15.6508,95.93,95.855,0.25]
[1644667744585,0.25,95.929,95.855,0.25]
[1644667744785,40.20996338,95.919,95.84,1.41153336]
[1644667744985,31.58802715,95.918,95.811,1.41153336]
[1644667745385,33.97169506,95.918,95.811,1.41153336]
[1644667745584,33.97169506,95.918,95.801,25.39673336]
[1644667745585,2.38366791,95.917,95.801,25.39673336]
[1644667745784,1.46452715,95.908,95.802,35.09771156]
[1644667745989,5.216,95.907,95.803,1.41153336]
[1644667746189,23.9306,95.906,95.804,24.3245]
[1644667746389,23.9306,95.906,95.804,29.5405]
[1644667746691,41.75581812,95.904,95.805,0.25]
[1644667746896,42.44700417,95.889,95.806,5.216]
[1644667747185,22.5442,95.888,95.806,5.216]
[1644667747386,22.5442,95.888,95.805,5.216]
[1644667747587,32.3542,95.888,95.805,6.62753336]
[1644667747787,15.6576,95.88,95.805,1.41153336]
[1644667747988,5.216,95.879,95.802,35.09771156]
[1644667748389,5.216,95.879,95.803,0.25]
[1644667748586,15.6576,95.88,95.803,0.25]
[1644667749995,0.25,95.879,95.804,5.216]
[1644667750195,0.25,95.879,95.805,0.25]
[1644667750392,0.25,95.879,95.806,5.216]
[1644667750794,0.25,95.879,95.807,0.25]
[1644667751193,0.25,95.879,95.808,5.216]
[1644667751717,0.25,95.879,95.809,0.25]
[1644667752115,0.25,95.879,95.802,35.09771156]
[1644667752116,15.6591,95.87,95.802,35.09771156]
[1644667752315,51.17073222,95.869,95.803,0.25]
[1644667753316,15.6621,95.86,95.803,0.25]
[1644667753520,24.1478,95.859,95.779,0.25]
[1644667753717,33.4878,95.859,95.779,0.25]
[1644667753917,5.218,95.858,95.779,0.25]
[1644667754520,5.218,95.858,95.779,46.19507542]
[1644667754818,15.6637,95.85,95.779,46.19507542]
[1644667755021,47.79665119,95.849,95.779,0.25]
[1644667755221,47.79665119,95.849,95.75,15.6637]
[1644667755419,47.79665119,95.849,95.751,23.6258]
[1644667756121,0.25,95.848,95.752,43.62064228]
[1644667756720,15.6652,95.84,95.753,0.25]
[1644667756925,15.6652,95.84,95.754,5.219]
[1644667757320,24.7357,95.839,95.755,0.25]
[1644667757520,31.9857,95.839,95.755,0.25]
[1644667757719,31.9857,95.839,95.756,5.219]
[1644667758122,31.9857,95.839,95.757,0.25]
[1644667758326,31.9857,95.839,95.758,5.219]
[1644667758721,15.6665,95.83,95.759,0.25]
[1644667758920,39.8404618,95.829,95.759,0.25]
[1644667759321,24.7357,95.839,95.759,0.25]
[1644667759722,0.25,95.838,95.759,0.25]
[1644667760523,24.7357,95.839,95.759,0.25]
[1644667761526,24.7357,95.839,95.758,5.219]
[1644667761729,0.25,95.838,95.753,5.219]
[1644667761937,15.666,95.83,95.753,5.219]
[1644667762127,15.666,95.83,95.752,43.62064228]
[1644667762324,5.219,95.829,95.752,43.62064228]
[1644667762528,7.60266791,95.829,95.752,43.62064228]
[1644667762723,2.38366791,95.828,95.752,43.62064228]
[1644667762924,15.6715,95.81,95.71,15.6705]
[1644667763124,54.2851,95.809,95.71,15.6705]
[1644667763329,54.2851,95.809,95.711,19.85325875]
[1644667763526,2.38366791,95.808,95.711,19.85325875]
[1644667763723,5.221,95.807,95.693,5.219]
[1644667763926,39.28581783,95.806,95.694,35.21246684]
[1644667764124,5.221,95.805,95.694,35.21246684]
[1644667764423,7.60466791,95.805,95.695,19.879812]
[1644667764627,2.38366791,95.804,95.696,5.221]
[1644667764827,15.6732,95.79,95.696,5.471]
[1644667765024,62.33472901,95.789,95.696,5.471]
[1644667766028,0.25,95.788,95.696,5.471]
[1644667766229,5.222,95.787,95.696,0.25]
[1644667766627,5.222,95.787,95.695,0.25]
[1644667766829,39.85278716,95.769,95.695,0.25]
[1644667767630,39.85278716,95.769,95.694,35.21246684]
[1644667767829,15.6776,95.76,95.694,35.21246684]
[1644667768031,5.223,95.759,95.694,35.21246684]
[1644667768431,11.02,95.759,95.694,35.21246684]
[1644667768832,11.02,95.759,95.671,5.223]
[1644667769031,15.6797,95.75,95.671,5.223]
[1644667769438,7.60766791,95.749,95.671,5.223]
[1644667769634,15.03,95.74,95.671,5.223]
[1644667769836,39.98356038,95.739,95.671,5.223]
[1644667770033,53.79722829,95.739,95.671,5.223]
[1644667770437,15.6872,95.73,95.671,5.223]
[1644667770635,5.224,95.729,95.617,1.41153336]
[1644667770933,5.224,95.729,95.617,2.38366791]
[1644667770934,56.19706791,95.729,95.617,2.38366791]
[1644667771135,53.8134,95.729,95.618,5.226]
[1644667771334,2.38366791,95.728,95.619,37.85066041]
[1644667771534,5.226,95.727,95.62,5.226]
[1644667771737,5.226,95.728,95.62,7.60966791]
[1644667772134,5.226,95.728,95.621,2.38366791]
[1644667772337,5.226,95.728,95.622,5.226]
[1644667772538,5.226,95.728,95.622,28.7041]
[1644667772736,15.69,95.7,95.623,2.38366791]
[1644667772936,37.27645965,95.699,95.623,2.38366791]
[1644667773636,37.27645965,95.699,95.624,0.25]
[1644667774135,37.27645965,95.699,95.625,2.38366791]
[1644667774334,37.27645965,95.699,95.626,0.25]
[1644667774735,37.27645965,95.699,95.627,2.38366791]
[1644667775234,37.27645965,95.699,95.628,0.25]
[1644667775636,37.27645965,95.699,95.628,2.63366791]
[1644667776440,37.27645965,95.699,95.628,0.25]
[1644667776836,37.27645965,95.699,95.623,0.25]
[1644667777037,37.27645965,95.699,95.623,5.476]
[1644667777435,15.6896,95.69,95.623,5.476]
[1644667777639,15.6896,95.69,95.623,0.25]
[1644667777836,0.25,95.689,95.622,23.4781]
[1644667778337,5.226,95.698,95.623,2.38366791]
[1644667778539,37.27645965,95.699,95.623,7.60966791]
[1644667778939,37.27645965,95.699,95.624,2.38366791]
[1644667779140,37.27645965,95.699,95.624,2.63366791]
[1644667779738,15.6896,95.69,95.624,2.63366791]
[1644667780039,15.6896,95.69,95.624,0.25]
[1644667780241,5.227,95.689,95.623,0.25]
[1644667780638,5.227,95.689,95.62,0.25]
[1644667780939,48.18980194,95.679,95.62,0.25]
[1644667781540,48.18980194,95.679,95.608,0.25]
[1644667781738,5.227,95.678,95.608,0.25]
[1644667782038,15.6929,95.67,95.607,0.25]
[1644667782240,15.6929,95.67,95.609,2.38366791]
[1644667782439,15.6929,95.67,95.608,5.228]
[1644667782640,15.6929,95.67,95.608,5.478]
[1644667783244,15.6905,95.69,95.609,2.38366791]
[1644667783445,29.2834,95.719,95.61,5.227]
[1644667783646,5.226,95.728,95.62,15.03]
[1644667783845,24.51,95.729,95.621,0.25]
[1644667784247,42.43337432,95.738,95.63,15.6846]
[1644667784445,42.43337432,95.738,95.64,15.03]
[1644667784645,42.43337432,95.738,95.641,39.46412434]
[1644667784846,42.43337432,95.738,95.641,39.71412434]
[1644667785048,42.43337432,95.738,95.641,42.09779225]
[1644667785244,42.43337432,95.738,95.642,26.91036791]
[1644667785645,42.43337432,95.738,95.643,2.63366791]
[1644667785845,5.224,95.737,95.644,5.224]
[1644667786050,42.43337432,95.738,95.644,7.60766791]
[1644667786246,42.43337432,95.738,95.645,2.63366791]
[1644667786446,42.43337432,95.738,95.646,5.224]
[1644667786649,42.43337432,95.738,95.66,15.03]
[1644667786847,42.43337432,95.738,95.662,35.90016466]
[1644667787048,5.224,95.737,95.662,35.90016466]
[1644667787249,5.224,95.737,95.663,0.25]
[1644667787448,5.224,95.737,95.663,2.63366791]
[1644667787748,5.224,95.737,95.664,2.38366791]
[1644667788051,42.43337432,95.738,95.665,5.224]
[1644667788248,42.43337432,95.738,95.665,5.474]
[1644667788449,42.43337432,95.738,95.666,2.38366791]
[1644667788748,0.25,95.737,95.667,5.474]
[1644667788952,5.474,95.737,95.667,5.474]
[1644667789151,5.474,95.737,95.668,2.38366791]
[1644667789352,5.474,95.737,95.669,0.25]
[1644667789751,5.474,95.737,95.67,2.38366791]
[1644667790153,5.474,95.737,95.671,0.25]
[1644667790352,0.25,95.737,95.671,0.25]
[1644667790967,5.224,95.736,95.671,0.25]
[1644667791168,5.224,95.736,95.663,0.25]
[1644667791772,15.6835,95.73,95.663,0.25]
[1644667791971,5.224,95.729,95.663,0.25]
[1644667792771,5.224,95.736,95.663,0.25]
[1644667793380,15.6853,95.72,95.663,0.25]
[1644667793578,47.3209546,95.719,95.663,0.25]
[1644667793778,42.0969546,95.719,95.663,0.25]
[1644667794982,0.25,95.718,95.663,0.25]
[1644667797985,42.0969546,95.719,95.663,0.25]
[1644667798291,42.0969546,95.719,95.664,2.38366791]
[1644667798490,42.0969546,95.719,95.664,9.01920127]
[1644667798687,42.0969546,95.719,95.665,0.25]
[1644667798887,42.0969546,95.719,95.666,5.224]
[1644667799192,23.3485,95.737,95.667,0.25]
[1644667799388,23.3485,95.737,95.668,5.224]
[1644667799788,23.3485,95.737,95.67,1.41153336]
[1644667799987,23.3485,95.737,95.673,1.41153336]
[1644667800192,15.6796,95.76,95.68,15.6764]
[1644667800390,45.01123421,95.767,95.681,40.06616543]
[1644667800694,45.01123421,95.767,95.685,1.41153336]
[1644667800889,45.01123421,95.767,95.687,1.41153336]
[1644667801096,45.01123421,95.767,95.689,1.41153336]
[1644667801296,45.01123421,95.767,95.69,0.25]
[1644667801691,45.01123421,95.767,95.691,2.38366791]
[1644667802093,45.01123421,95.767,95.692,0.25]
[1644667802502,5.473,95.766,95.692,0.25]
[1644667802792,24.5717,95.766,95.682,5.223]
[1644667802994,15.6783,95.76,95.673,1.41153336]
[1644667803395,5.223,95.759,95.673,1.41153336]
[1644667803598,5.223,95.759,95.671,1.41153336]
[1644667803894,5.223,95.765,95.671,1.41153336]
[1644667804120,5.223,95.765,95.67,1.41153336]
[1644667804297,5.223,95.765,95.682,0.25]
[1644667804894,38.23006611,95.749,95.682,0.25]
[1644667805496,5.223,95.748,95.682,0.25]
[1644667805696,38.23006611,95.749,95.682,0.25]
[1644667805899,15.6816,95.74,95.664,1.41153336]
[1644667806095,5.224,95.739,95.661,24.10883336]
[1644667806400,5.224,95.739,95.662,1.41153336]
[1644667806604,15.6816,95.74,95.663,5.224]
[1644667807297,15.6816,95.74,95.682,0.25]
[1644667807494,5.224,95.739,95.682,0.25]
[1644667809803,0.25,95.738,95.682,0.25]
[1644667810004,5.224,95.753,95.682,0.25]
[1644667810204,27.8264,95.769,95.683,2.38366791]
[1644667810405,52.258,95.79,95.687,1.41153336]
[1644667810607,22.6024,95.789,95.688,1.41153336]
[1644667810805,22.6024,95.789,95.69,1.41153336]
[1644667811005,40.93062779,95.788,95.692,1.41153336]
[1644667811305,40.93062779,95.788,95.693,0.25]
[1644667811507,40.93062779,95.788,95.694,5.222]
[1644667811733,15.6762,95.78,95.695,0.25]
[1644667811934,15.6762,95.78,95.696,5.222]
[1644667812130,15.6762,95.78,95.696,7.60566791]
[1644667812334,15.6762,95.78,95.697,0.25]
[1644667812529,15.6762,95.78,95.698,5.222]
[1644667812733,2.38366791,95.813,95.7,15.03]
[1644667812933,1.46452715,95.811,95.702,1.41153336]
[1644667813132,1.46452715,95.818,95.709,1.41153336]
[1644667813331,1.46452715,95.82,95.72,15.03]
[1644667813533,1.46452715,95.827,95.73,15.03]
[1644667813731,41.6628898,95.819,95.731,0.25]
[1644667813933,41.6628898,95.819,95.74,15.6663]
[1644667814135,41.6628898,95.819,95.741,5.22]
[1644667814331,41.6628898,95.819,95.741,5.47]
[1644667814531,41.6628898,95.819,95.741,0.25]
[1644667814731,5.22,95.818,95.741,0.25]
[1644667815333,0.25,95.817,95.73,15.03]
[1644667815533,5.22,95.816,95.73,15.03]
[1644667815736,15.6704,95.81,95.73,15.03]
[1644667815933,15.6704,95.81,95.731,2.38366791]
[1644667816334,15.6704,95.81,95.73,15.03]
[1644667816533,5.22,95.809,95.73,15.03]
[1644667816737,5.22,95.809,95.731,0.25]
[1644667817935,15.6704,95.81,95.731,0.25]